bitfinex-derivatives/quotes_SOLF0:USTF0_20260312
["timestamp","ask_amount","ask_price","bid_price","bid_amount"]
[1773342555093,2.97244185,85.959,85.907,3.7249874]
[1773342555296,2.91696742,85.975,85.907,3.7249874]
[1773342556298,2.91696742,85.975,85.916,3.7249874]
[1773342557903,10.469,85.962,85.916,3.7249874]
[1773342559300,9.28387748,85.98,85.899,3.7249874]
[1773342559301,2.9167794,85.955,85.899,3.7249874]
[1773342559499,2.9167794,85.979,85.899,3.7249874]
[1773342560206,2.9167794,85.979,85.913,10.475]
[1773342560507,2.92320062,85.959,85.899,3.7249874]
[1773342561505,2.92455993,85.974,85.906,3.9194465]
[1773342563001,2.92455993,85.974,85.9,9.28387748]
[1773342563002,10.467,85.976,85.932,3.9194465]
[1773342563904,10.467,85.976,85.933,10.472]
[1773342564904,2.9306584,85.989,85.936,3.9194465]
[1773342565608,2.88039701,85.985,85.922,3.9194465]
[1773342567006,10.467,85.973,85.925,10.473]
[1773342567702,10.466,85.982,85.931,3.9194465]
[1773342567902,9.28387748,85.99,85.931,3.9194465]
[1773342568699,10.466,85.981,85.932,10.472]
[1773342568900,2.88308888,85.989,85.917,3.9194465]
[1773342569499,10.467,85.976,85.93,10.473]
[1773342570407,2.88308888,85.989,85.937,3.9194465]
[1773342572000,2.88308888,85.989,85.901,3.9194465]
[1773342574108,2.82417908,85.969,85.902,3.9194465]
[1773342575903,10.469,85.962,85.911,3.9194465]
[1773342576302,2.82417908,85.969,85.922,3.9194465]
[1773342578913,10.469,85.962,85.922,3.9194465]
[1773342581719,3.46531324,85.96,85.922,3.9194465]
[1773342581919,3.46531324,85.96,85.924,10.473]
[1773342582818,10.469,85.962,85.922,3.9194465]
[1773342583115,3.46531324,85.96,85.922,3.9194465]
[1773342584424,3.46531324,85.96,85.922,14.3924465]
[1773342585618,2.82263367,85.962,85.922,14.3924465]
[1773342585823,3.46531324,85.96,85.922,14.3924465]
[1773342586124,3.46531324,85.96,85.928,14.5047091]
[1773342587720,10.468,85.966,85.928,14.5047091]
[1773342588321,10.468,85.966,85.928,4.0317091]
[1773342588621,10.468,85.966,85.921,10.474]
[1773342588622,13.27786299,85.964,85.921,10.474]
[1773342588822,3.46531324,85.96,85.921,10.474]
[1773342592220,3.46531324,85.97,85.921,3.66458735]
[1773342593726,3.46460526,85.97,85.921,3.66458735]
[1773342593926,3.46460526,85.97,85.932,10.472]
[1773342596024,3.46460526,85.95,85.911,3.66458735]
[1773342596226,2.79071445,85.95,85.911,3.66458735]
[1773342596420,3.46460526,85.95,85.913,10.475]
[1773342596825,3.46460526,85.95,85.914,3.66458735]
[1773342597726,3.46460526,85.94,85.904,10.476]
[1773342598033,13.25840255,85.948,85.905,3.66458735]
[1773342599029,13.25840255,85.948,85.908,10.475]
[1773342600222,2.72395877,85.939,85.892,3.66458735]
[1773342600424,3.46460526,85.92,85.878,3.66458735]
[1773342600932,2.72395877,85.929,85.878,3.66458735]
[1773342601429,3.46460526,85.92,85.878,3.66458735]
[1773342601733,2.72041001,85.919,85.878,3.66458735]
[1773342603134,2.72041001,85.919,85.879,10.479]
[1773342603723,20.939,85.96,85.86,3.46460526]
[1773342603724,3.46460526,85.91,85.864,3.66458735]
[1773342603929,3.46460526,85.89,85.841,3.66458735]
[1773342604330,3.46460526,85.91,85.861,3.66458735]
[1773342605127,10.475,85.909,85.863,10.481]
[1773342605326,3.46460526,85.9,85.861,3.66458735]
[1773342609237,3.46460526,85.89,85.854,10.482]
[1773342609433,3.46460526,85.89,85.84,3.46460526]
[1773342609434,2.67338558,85.879,85.821,3.66458735]
[1773342609634,3.46460526,85.87,85.821,3.66458735]
[1773342610037,2.67338558,85.879,85.821,3.66458735]
[1773342610332,3.46460526,85.88,85.835,3.66458735]
[1773342610537,3.46460526,85.9,85.841,3.66458735]
[1773342610937,3.46460526,85.89,85.841,3.66458735]
[1773342611445,3.46460526,85.88,85.841,3.66458735]
[1773342611738,3.46460526,85.89,85.841,1.81366895]
[1773342611940,10.478,85.889,85.841,10.483]
[1773342612344,3.46460526,85.9,85.84,3.46460526]
[1773342613153,3.46460526,85.9,85.856,10.482]
[1773342613445,3.46460526,85.92,85.86,3.46460526]
[1773342613650,3.46460526,85.92,85.871,3.66458735]
[1773342613840,3.96740515,85.919,85.871,3.66458735]
[1773342615146,3.46460526,85.91,85.871,3.66458735]
[1773342615347,10.475,85.909,85.871,3.66458735]
[1773342616350,10.475,85.909,85.851,3.66458735]
[1773342616936,10.475,85.909,85.862,3.66458735]
[1773342617846,10.475,85.909,85.863,10.481]
[1773342618249,10.475,85.909,85.864,3.66458735]
[1773342619847,10.475,85.909,85.866,14.14458735]
[1773342620348,10.475,85.909,85.867,3.72978083]
[1773342620749,10.475,85.909,85.869,14.20978083]
[1773342621355,10.474,85.916,85.869,14.20978083]
[1773342623751,13.93960526,85.91,85.869,3.72978083]
[1773342623953,4.04504549,85.879,85.82,3.46460526]
[1773342624152,3.46460526,85.87,85.821,3.72978083]
[1773342625357,3.46460526,85.86,85.821,3.72978083]
[1773342625556,3.46460526,85.85,85.801,3.72978083]
[1773342625757,3.46460526,85.85,85.807,3.72978083]
[1773342625951,4.04504549,85.859,85.811,3.72978083]
[1773342626349,3.46460526,85.84,85.797,3.72978083]
[1773342627658,14.52804549,85.849,85.797,3.72978083]
[1773342629056,10.481,85.859,85.8,3.72978083]
[1773342629251,4.04504549,85.867,85.8,3.72978083]
[1773342630350,9.30880514,85.88,85.8,3.72978083]
[1773342630554,14.52404549,85.876,85.829,3.72978083]
[1773342630945,4.04504549,85.875,85.829,3.72978083]
[1773342632056,10.48,85.873,85.829,3.72978083]
[1773342632648,10.48,85.873,85.819,10.486]
[1773342632649,4.04504549,85.875,85.831,3.72978083]
[1773342635759,4.04504549,85.872,85.831,3.72978083]
[1773342636657,4.04504549,85.872,85.826,10.485]
[1773342636855,4.04504549,85.872,85.827,3.72978083]
[1773342637954,4.04504549,85.872,85.83,10.485]
[1773342638958,9.30880514,85.9,85.827,3.72978083]
[1773342638959,4.04504549,85.87,85.827,3.72978083]
[1773342639153,4.04504549,85.859,85.799,3.72978083]
[1773342639353,4.04504549,85.859,85.747,20.99]
[1773342639354,4.04504549,85.859,85.771,3.72978083]
[1773342639854,10.483,85.844,85.795,3.72978083]
[1773342640057,4.04504549,85.859,85.795,3.72978083]
[1773342640260,10.482,85.852,85.803,14.21778083]
[1773342640760,10.482,85.852,85.804,3.72978083]
[1773342641749,10.483,85.847,85.804,3.72978083]
[1773342643561,14.20563207,85.847,85.804,3.72978083]
[1773342644462,3.72263207,85.847,85.806,3.68217768]
[1773342644763,10.482,85.855,85.806,3.68217768]
[1773342644953,10.482,85.855,85.809,10.487]
[1773342645154,3.72263207,85.852,85.79,3.68217768]
[1773342645660,3.72263207,85.839,85.753,3.68217768]
[1773342645864,3.72263207,85.827,85.753,3.68217768]
[1773342646066,3.72263207,85.827,85.777,10.491]
[1773342646564,3.72263207,85.818,85.756,3.68217768]
[1773342647565,3.47863353,85.8,85.76,10.493]
[1773342649258,10.487,85.81,85.767,14.17417768]
[1773342649259,13.96563353,85.81,85.767,14.17417768]
[1773342649465,13.96563353,85.81,85.725,20.996]
[1773342649466,3.47863353,85.81,85.768,3.68217768]
[1773342649863,3.47863353,85.83,85.781,3.68217768]
[1773342650063,3.72263207,85.851,85.801,3.68217768]
[1773342650369,3.47863353,85.86,85.811,3.7580895]
[1773342650972,10.481,85.865,85.818,10.486]
[1773342651168,3.47863353,85.86,85.818,10.486]
[1773342651372,10.481,85.865,85.818,10.486]
[1773342654068,3.90628813,85.858,85.811,3.7580895]
[1773342654974,10.482,85.855,85.811,3.7580895]
[1773342655773,3.90628813,85.858,85.814,10.487]
[1773342659172,3.90628813,85.858,85.817,10.486]
[1773342662376,3.90628813,85.839,85.764,3.7580895]
[1773342662977,10.484,85.835,85.786,10.49]
[1773342663475,3.90628813,85.828,85.778,10.491]
[1773342663780,3.90628813,85.828,85.762,3.7580895]
[1773342664180,3.90628813,85.828,85.768,10.492]
[1773342665077,10.487,85.81,85.768,10.492]
[1773342665479,10.486,85.824,85.777,3.7580895]
[1773342665673,3.90628813,85.828,85.777,3.7580895]
[1773342666078,10.486,85.819,85.777,3.7580895]
[1773342667580,9.30559028,85.84,85.764,10.493]
[1773342667581,3.90628813,85.811,85.764,10.493]
[1773342668084,10.488,85.803,85.763,3.7580895]
[1773342668579,10.487,85.81,85.763,3.7580895]
[1773342669480,10.488,85.803,85.764,10.493]
[1773342669680,10.488,85.803,85.763,3.7580895]
[1773342670184,3.90628813,85.81,85.72,9.30559028]
[1773342670185,3.90628813,85.81,85.745,3.7580895]
[1773342670687,3.90628813,85.799,85.701,3.7580895]
[1773342670883,3.90628813,85.799,85.74,3.7580895]
[1773342671578,3.47986164,85.78,85.74,3.7580895]
[1773342671977,3.47986164,85.78,85.744,10.495]
[1773342672176,3.47986164,85.78,85.74,3.7580895]
[1773342672988,3.47986164,85.78,85.741,10.496]
[1773342673577,14.39628813,85.79,85.741,10.496]
[1773342673979,10.49,85.788,85.741,10.496]
[1773342674984,3.90628813,85.8,85.744,3.7580895]
[1773342676888,3.90628813,85.8,85.764,10.493]
[1773342677489,3.90628813,85.799,85.725,3.7580895]
[1773342678189,10.49,85.788,85.745,10.495]
[1773342678988,3.90628813,85.799,85.746,3.7580895]
[1773342679687,10.49,85.791,85.746,3.7580895]
[1773342680486,4.06157493,85.797,85.749,4.04834253]
[1773342680881,10.492,85.771,85.731,10.497]
[1773342681789,14.55257493,85.778,85.731,10.497]
[1773342682888,10.492,85.772,85.731,10.497]
[1773342683386,10.492,85.772,85.724,10.498]
[1773342683691,4.06157493,85.765,85.724,10.498]
[1773342686093,10.491,85.776,85.728,4.04834253]
[1773342687992,14.55257493,85.776,85.732,10.497]
[1773342689190,10.492,85.772,85.732,10.497]
[1773342689402,4.06157493,85.771,85.724,10.498]
[1773342690997,10.493,85.765,85.724,10.498]
[1773342691395,4.06157493,85.764,85.724,10.498]
[1773342691600,4.06157493,85.759,85.717,10.499]
[1773342691801,4.06157493,85.759,85.701,4.04834253]
[1773342692202,10.494,85.757,85.717,10.499]
[1773342693606,3.48221418,85.75,85.717,10.499]
[1773342694902,10.494,85.757,85.717,10.499]
[1773342696008,3.48221418,85.75,85.7,4.04834253]
[1773342696810,3.48221418,85.75,85.701,4.04834253]
[1773342697009,3.48221418,85.75,85.71,14.54734253]
[1773342697203,3.48221418,85.75,85.711,4.04834253]
[1773342697405,4.06157493,85.752,85.711,4.04834253]
[1773342697607,3.48221418,85.76,85.711,4.04834253]
[1773342698912,10.494,85.753,85.713,4.04834253]
[1773342699309,4.06157493,85.767,85.713,4.04834253]
[1773342699610,10.492,85.773,85.73,4.04834253]
[1773342701008,18.03478911,85.78,85.73,7.53055671]
[1773342701203,18.03478911,85.78,85.731,4.04834253]
[1773342701511,7.54378911,85.78,85.731,4.04834253]
[1773342703012,10.492,85.775,85.733,10.497]
[1773342703602,10.492,85.77,85.733,10.497]
[1773342703804,4.0144879,85.779,85.733,14.36246901]
[1773342705009,10.491,85.776,85.733,14.36246901]
[1773342706719,4.0144879,85.779,85.74,3.86546901]
[1773342706920,10.491,85.782,85.74,3.86546901]
[1773342707517,10.491,85.782,85.74,3.48221418]
[1773342707820,17.33565476,85.814,85.707,21.0]
[1773342707821,4.0144879,85.805,85.753,3.86546901]
[1773342708625,10.489,85.795,85.753,3.86546901]
[1773342708924,8.82104803,85.831,85.738,3.86546901]
[1773342708925,3.48221418,85.78,85.738,3.86546901]
[1773342709925,3.48221418,85.78,85.742,10.495]
[1773342710627,10.491,85.783,85.742,10.495]
[1773342711326,10.491,85.783,85.738,3.86546901]
[1773342711327,4.00177733,85.776,85.735,10.496]
[1773342711722,4.00177733,85.769,85.724,4.0041137]
[1773342712028,4.00177733,85.769,85.726,4.0041137]
[1773342713020,4.00177733,85.769,85.729,14.5011137]
[1773342713225,4.00177733,85.769,85.73,4.0041137]
[1773342713720,10.492,85.773,85.732,4.0041137]
[1773342716229,4.00177733,85.779,85.732,4.0041137]
[1773342716725,8.55801487,85.803,85.725,10.498]
[1773342716726,3.48221418,85.76,85.725,10.498]
[1773342717429,4.00177733,85.769,85.725,10.498]
[1773342717931,10.493,85.761,85.725,10.498]
[1773342719029,4.00177733,85.749,85.703,4.0041137]
[1773342719828,10.495,85.747,85.703,4.0041137]
[1773342720133,10.495,85.747,85.706,4.0041137]
[1773342720539,3.48128637,85.74,85.706,4.0041137]
[1773342720724,4.00177733,85.739,85.692,4.0041137]
[1773342721034,4.00177733,85.738,85.692,4.0041137]
[1773342721236,4.00177733,85.729,85.678,4.0041137]
[1773342721431,4.00177733,85.719,85.667,4.0041137]
[1773342721635,3.48128637,85.72,85.667,4.0041137]
[1773342721636,14.50077733,85.716,85.667,4.0041137]
[1773342722025,4.00177733,85.709,85.661,10.505]
[1773342722231,4.00177733,85.699,85.652,10.507]
[1773342722430,3.48128637,85.69,85.666,0.00076607]
[1773342722628,3.48128637,85.69,85.634,4.0041137]
[1773342722629,7.4830637,85.68,85.634,4.0041137]
[1773342723030,4.00177733,85.679,85.634,4.0041137]
[1773342723236,4.00177733,85.679,85.621,4.0041137]
[1773342723431,4.00177733,85.679,85.63,3.48128637]
[1773342723735,4.00177733,85.679,85.621,4.0041137]
[1773342723736,4.00177733,85.694,85.632,4.0041137]
[1773342724030,4.00177733,85.694,85.639,4.0041137]
[1773342724031,10.502,85.691,85.639,4.0041137]
[1773342724225,4.00177733,85.69,85.621,4.0041137]
[1773342724629,4.00177733,85.686,85.632,10.509]
[1773342725127,4.00177733,85.686,85.632,14.5131137]
[1773342725333,4.00177733,85.701,85.636,4.0041137]
[1773342725734,4.00177733,85.715,85.641,4.0041137]
[1773342726037,14.50177733,85.705,85.658,4.0041137]
[1773342726840,10.499,85.714,85.658,4.0041137]
[1773342727038,4.00177733,85.721,85.658,4.0041137]
[1773342728834,4.00177733,85.718,85.667,10.505]
[1773342730240,4.00177733,85.718,85.674,10.504]
[1773342731141,4.00177733,85.739,85.677,4.0041137]
[1773342731540,4.00177733,85.725,85.678,10.503]
[1773342731744,4.00177733,85.725,85.677,4.0041137]
[1773342732234,4.00177733,85.725,85.651,4.0041137]
[1773342732935,4.00177733,85.714,85.651,4.0041137]
[1773342733933,4.00177733,85.712,85.652,14.5111137]
[1773342734938,4.00177733,85.729,85.653,4.0041137]
[1773342735535,4.00177733,85.728,85.672,4.0041137]
[1773342736545,4.00177733,85.743,85.691,4.0041137]
[1773342736943,4.00177733,85.757,85.702,4.0041137]
[1773342738840,14.49577733,85.755,85.703,10.5]
[1773342739444,4.00177733,85.754,85.703,10.5]
[1773342740542,4.00177733,85.754,85.706,14.28106292]
[1773342740736,10.494,85.757,85.707,3.78106292]
[1773342740937,3.88244208,85.769,85.707,3.78106292]
[1773342741738,3.88244208,85.769,85.718,3.78106292]
[1773342742944,10.493,85.767,85.721,10.498]
[1773342744444,3.88244208,85.769,85.723,3.78106292]
[1773342745743,10.493,85.762,85.723,3.78106292]
[1773342745943,3.88244208,85.761,85.709,3.78106292]
[1773342746444,3.88244208,85.761,85.711,3.78106292]
[1773342747839,10.494,85.759,85.714,10.499]
[1773342748146,3.88244208,85.761,85.715,3.78106292]
[1773342748446,3.88244208,85.761,85.722,10.498]
[1773342751638,3.88244208,85.761,85.716,3.78106292]
[1773342752040,3.88244208,85.789,85.74,3.78106292]
[1773342752441,3.88244208,85.789,85.711,3.78106292]
[1773342752948,10.492,85.77,85.711,3.78106292]
[1773342753347,10.492,85.77,85.727,10.497]
[1773342753647,10.492,85.77,85.727,14.27806292]
[1773342754444,10.492,85.77,85.729,10.497]
[1773342754650,3.88244208,85.775,85.729,14.27806292]
[1773342755051,10.494,85.752,85.703,3.78106292]
[1773342756048,3.88244208,85.757,85.708,3.78106292]
[1773342756549,10.494,85.755,85.709,10.5]
[1773342756749,10.494,85.755,85.709,14.28106292]
[1773342757051,3.88244208,85.757,85.709,3.78106292]
[1773342757354,10.495,85.749,85.709,3.78106292]
[1773342757752,3.88244208,85.749,85.695,3.78106292]
[1773342758251,3.88244208,85.749,85.696,10.501]
[1773342758650,3.88244208,85.749,85.696,14.28206292]
[1773342758849,10.495,85.743,85.697,3.78106292]
[1773342762859,19.83676455,85.75,85.7,3.70348466]
[1773342763157,10.495,85.75,85.7,3.70348466]
[1773342763456,10.494,85.753,85.714,10.499]
[1773342763656,4.04065418,85.763,85.715,3.70348466]
[1773342763857,4.04065418,85.763,85.681,3.70348466]
[1773342764359,4.04065418,85.763,85.705,10.5]
[1773342764559,4.04065418,85.763,85.706,3.70348466]
[1773342765951,10.494,85.753,85.706,3.70348466]
[1773342767556,10.494,85.753,85.665,57.69]
[1773342767557,3.48246263,85.75,85.707,14.20348466]
[1773342767956,3.48246263,85.75,85.708,3.70348466]
[1773342768458,3.48246263,85.75,85.711,3.70348466]
[1773342768959,10.495,85.749,85.711,3.70348466]
[1773342770059,3.48246263,85.74,85.711,3.70348466]
[1773342770260,10.495,85.749,85.711,3.70348466]
[1773342771355,10.495,85.749,85.712,14.46609139]
[1773342774556,10.494,85.757,85.717,3.96709139]
[1773342775254,10.494,85.757,85.719,3.96709139]
[1773342775463,4.04065418,85.763,85.72,3.48246263]
[1773342775758,4.04065418,85.763,85.725,10.498]
[1773342775959,10.493,85.761,85.725,3.96709139]
[1773342776156,36.68,85.764,85.725,3.96709139]
[1773342776361,36.68,85.764,85.732,3.96709139]
[1773342776661,3.70903028,85.777,85.721,3.96709139]
[1773342776662,3.48246263,85.77,85.721,3.96709139]
[1773342776862,3.70903028,85.769,85.721,3.96709139]
[1773342777965,10.492,85.768,85.723,3.96709139]
[1773342778761,10.493,85.761,85.723,3.96709139]
[1773342779358,3.70903028,85.769,85.723,3.96709139]
[1773342779869,198.66900334,85.884,85.694,36.68]
[1773342779870,3.70903028,85.795,85.75,7.44794227]
[1773342780071,3.70903028,85.795,85.751,3.96709139]
[1773342780660,36.68,85.801,85.761,3.96709139]
[1773342780866,3.70903028,85.826,85.78,3.48085088]
[1773342781068,36.68,85.825,85.78,3.48085088]
[1773342781364,40.38903028,85.825,85.78,3.48085088]
[1773342781861,10.486,85.822,85.78,3.48085088]
[1773342782068,47.166,85.822,85.78,3.48085088]
[1773342782463,10.488,85.808,85.771,3.96709139]
[1773342782658,14.19703028,85.808,85.763,10.493]
[1773342782862,3.70903028,85.807,85.763,10.493]
[1773342783657,3.70903028,85.807,85.771,10.492]
[1773342783860,10.487,85.813,85.772,3.96709139]
[1773342784064,7.18988116,85.82,85.772,3.96709139]
[1773342784568,3.70903028,85.82,85.772,3.96709139]
[1773342784758,3.70903028,85.82,85.77,3.48085088]
[1773342784759,3.70903028,85.82,85.774,3.96709139]
[1773342784959,36.68,85.828,85.781,3.96709139]
[1773342785265,3.48085088,85.86,85.81,7.44794227]
[1773342785463,36.68,85.859,85.811,3.96709139]
[1773342785865,40.38903028,85.859,85.811,3.96709139]
[1773342786871,3.70903028,85.858,85.811,3.96709139]
[1773342787768,3.70903028,85.849,85.771,36.68]
[1773342787968,3.70903028,85.847,85.791,3.96709139]
[1773342788168,3.70903028,85.845,85.791,3.96709139]
[1773342788376,3.70903028,85.843,85.793,3.96709139]
[1773342788567,9.30402779,85.85,85.762,3.96709139]
[1773342788568,3.70903028,85.841,85.762,3.96709139]
[1773342789469,3.70903028,85.841,85.775,10.491]
[1773342790370,10.486,85.82,85.768,3.96709139]
[1773342790571,3.70903028,85.819,85.768,3.96709139]
[1773342791877,10.487,85.815,85.768,3.96709139]
[1773342792773,3.70903028,85.808,85.759,10.493]
[1773342792973,3.70903028,85.808,85.737,36.66]
[1773342792974,3.70903028,85.808,85.76,3.96709139]
[1773342793170,9.30402779,85.83,85.737,36.66]
[1773342793171,3.70903028,85.826,85.762,3.96709139]
[1773342793973,36.66,85.828,85.789,3.96709139]
[1773342794979,36.66,85.828,85.74,20.992]
[1773342794980,3.70903028,85.827,85.772,3.96709139]
[1773342795680,3.70903028,85.814,85.741,3.96709139]
[1773342795978,3.70903028,85.812,85.741,3.96709139]
[1773342796175,3.70903028,85.811,85.741,3.96709139]
[1773342796877,10.487,85.81,85.761,3.96709139]
[1773342799379,10.488,85.803,85.761,3.96709139]
[1773342799679,3.70903028,85.811,85.762,10.493]
[1773342799881,3.70903028,85.811,85.762,14.46009139]
[1773342800078,3.70903028,85.811,85.763,3.96709139]
[1773342800481,10.488,85.808,85.763,3.96709139]
[1773342801377,3.70903028,85.811,85.763,3.96709139]
[1773342801378,10.488,85.801,85.763,3.96709139]
[1773342806175,3.97129878,85.789,85.749,3.71125422]
[1773342806680,10.49,85.787,85.75,3.47789859]
[1773342806980,10.49,85.787,85.749,3.71125422]
[1773342807681,3.97129878,85.789,85.749,14.20625422]
[1773342807887,3.97129878,85.807,85.761,3.71125422]
[1773342808583,10.488,85.808,85.77,7.18915281]
[1773342808786,3.97129878,85.81,85.77,3.71125422]
[1773342808978,3.97129878,85.81,85.76,3.47789859]
[1773342808979,3.97129878,85.809,85.76,3.47789859]
[1773342809180,10.488,85.802,85.76,13.97089859]
[1773342810384,10.489,85.796,85.76,3.47789859]
[1773342810986,3.97129878,85.787,85.742,3.71125422]
[1773342811379,3.97129878,85.799,85.75,3.47789859]
[1773342811680,10.49,85.788,85.751,10.494]
[1773342812288,10.491,85.781,85.744,10.495]
[1773342812787,10.491,85.781,85.744,14.20625422]
[1773342813686,10.49,85.788,85.744,14.20625422]
[1773342815394,10.491,85.781,85.744,14.20625422]
[1773342815591,3.97129878,85.787,85.74,3.47789859]
[1773342815795,3.97129878,85.787,85.731,3.71125422]
[1773342816393,10.491,85.781,85.74,10.496]
[1773342817598,10.491,85.781,85.74,13.97389859]
[1773342819902,3.97129878,85.787,85.731,3.71125422]
[1773342820302,3.97129878,85.787,85.74,3.47789859]
[1773342820909,10.491,85.78,85.74,13.97389859]
[1773342821503,10.491,85.78,85.741,3.71125422]
[1773342822599,3.97129878,85.787,85.742,10.495]
[1773342822805,3.83053226,85.786,85.741,3.71125422]
[1773342824008,10.49,85.784,85.742,3.85384378]
[1773342824401,3.83053226,85.786,85.742,3.85384378]
[1773342824900,14.31953226,85.799,85.754,3.85384378]
[1773342829213,14.31953226,85.796,85.754,3.85384378]
[1773342829413,3.47789859,85.79,85.754,3.85384378]
[1773342829712,3.83053226,85.789,85.74,7.33174237]
[1773342830014,3.83053226,85.789,85.741,3.85384378]
[1773342830214,3.83053226,85.789,85.748,3.85384378]
[1773342832010,10.49,85.787,85.749,10.495]
[1773342832206,10.49,85.787,85.749,14.23756895]
[1773342832411,10.49,85.787,85.75,3.74256895]
[1773342834212,10.491,85.781,85.75,3.74256895]
[1773342834517,3.83053226,85.789,85.731,3.74256895]
[1773342834913,10.491,85.781,85.739,14.23856895]
[1773342835114,10.491,85.781,85.74,3.47789859]
[1773342835620,3.83053226,85.789,85.743,3.74256895]
[1773342836918,3.83053226,85.789,85.748,10.495]
[1773342837423,3.83053226,85.789,85.749,3.74256895]
[1773342837623,3.83053226,85.789,85.751,10.494]
[1773342837824,10.489,85.799,85.761,3.74256895]
[1773342838024,36.68,85.804,85.761,3.74256895]
[1773342838326,9.12353224,85.809,85.77,3.74256895]
[1773342838517,3.96257078,85.812,85.77,3.74256895]
[1773342839725,3.4773445,85.81,85.77,3.74256895]
[1773342839920,10.487,85.811,85.77,3.74256895]
[1773342840925,10.487,85.809,85.77,3.74256895]
[1773342841119,3.4773445,85.81,85.773,3.74256895]
[1773342841322,36.68,85.836,85.79,3.4773445]
[1773342841525,13.9593445,85.85,85.801,3.74256895]
[1773342841720,3.96257078,85.849,85.801,3.74256895]
[1773342841926,3.4773445,85.84,85.801,14.23056895]
[1773342842123,10.483,85.848,85.801,14.23056895]
[1773342842923,10.484,85.839,85.801,3.74256895]
[1773342845621,3.96257078,85.839,85.79,3.4773445]
[1773342846126,3.96257078,85.839,85.791,3.74256895]
[1773342846924,3.96257078,85.839,85.799,10.489]
[1773342849432,3.96257078,85.837,85.792,10.489]
[1773342849623,3.96257078,85.837,85.78,3.4773445]
[1773342849830,10.484,85.834,85.79,10.49]
[1773342850030,10.484,85.834,85.79,13.9673445]
[1773342851929,14.44757078,85.829,85.783,10.491]
[1773342852127,14.44757078,85.829,85.784,3.74256895]
[1773342852324,3.96257078,85.828,85.784,3.74256895]
[1773342852622,3.96257078,85.828,85.776,3.74256895]
[1773342852822,10.486,85.818,85.778,10.491]
[1773342853029,3.96257078,85.817,85.776,3.74256895]
[1773342853220,14.44957078,85.809,85.763,14.23556895]
[1773342855334,14.44957078,85.809,85.764,3.74256895]
[1773342857634,3.96257078,85.808,85.764,3.74256895]
[1773342858937,10.488,85.804,85.764,3.74256895]
[1773342859136,3.96257078,85.803,85.764,3.74256895]
[1773342860433,3.75023584,85.819,85.764,3.74256895]
[1773342860938,3.75023584,85.809,85.765,10.493]
[1773342861640,10.488,85.807,85.768,10.492]
[1773342862232,10.488,85.807,85.768,14.29839532]
[1773342864641,14.23823584,85.807,85.768,3.80639532]
[1773342866935,3.75023584,85.807,85.769,10.492]
[1773342867338,3.75023584,85.807,85.768,3.80639532]
[1773342868843,10.488,85.806,85.768,3.80639532]
[1773342870042,14.23823584,85.806,85.768,3.80639532]
[1773342870545,10.488,85.804,85.768,3.80639532]
[1773342870744,14.23823584,85.804,85.768,3.80639532]
[1773342872646,3.75023584,85.803,85.761,3.80639532]
[1773342873442,3.75023584,85.803,85.764,3.80639532]
[1773342875046,3.75023584,85.803,85.769,3.80639532]
[1773342875241,10.488,85.808,85.769,3.80639532]
[1773342875446,10.488,85.805,85.769,3.80639532]
[1773342876550,3.75023584,85.807,85.769,3.80639532]
[1773342879054,3.4773445,85.82,85.773,3.80639532]
[1773342879649,3.75023584,85.828,85.773,3.80639532]
[1773342880551,3.75023584,85.819,85.773,3.80639532]
[1773342880752,10.486,85.817,85.775,3.80639532]
[1773342880952,3.75023584,85.816,85.775,3.80639532]
[1773342881951,10.487,85.815,85.775,3.80639532]
[1773342882655,3.81450519,85.814,85.775,3.80639532]
[1773342886956,10.486,85.822,85.775,3.80639532]
[1773342887258,3.81450519,85.839,85.801,3.93101726]
[1773342887851,10.483,85.846,85.802,3.93101726]
[1773342888153,3.81450519,85.863,85.821,3.93101726]
[1773342888459,3.81450519,85.863,85.779,20.983]
[1773342888460,3.81450519,85.879,85.831,3.93101726]
[1773342888655,5.84170934,85.897,85.851,3.93101726]
[1773342888856,5.84170934,85.897,85.826,3.93101726]
[1773342888857,3.4773445,85.88,85.826,3.93101726]
[1773342889052,3.81450519,85.879,85.831,3.93101726]
[1773342889256,3.81450519,85.879,85.831,14.41601726]
[1773342889759,3.81450519,85.869,85.82,3.4773445]
[1773342889956,3.81450519,85.859,85.818,3.93101726]